fUST/lending_fUST_20251026
["ID","MTS","AMOUNT","RATE_DAILY","PERIOD"]
[392403102,1761435021560,-594.24756806,0.00014917,2]
[392403103,1761435021640,-500.0,0.00014917,2]
[392403104,1761435021722,-500.0,0.00014917,2]
[392403105,1761435021897,-594.24756806,0.00014917,2]
[392403106,1761435021983,-500.0,0.00014917,2]
[392403107,1761435022074,-594.24756806,0.00014917,2]
[392403108,1761435022160,-500.0,0.00014917,2]
[392403109,1761435022248,-594.24756806,0.00014917,2]
[392403110,1761435022328,-606.50002973,0.00014917,2]
[392403111,1761435022411,-594.24756806,0.00014917,2]
[392403112,1761435022493,-500.0,0.00014917,2]
[392403113,1761435022576,-438.781828,0.00014917,2]
[392403114,1761435023036,-155.46574006,0.00014917,2]
[392403115,1761435023064,-40.53425994,0.00014917,2]
[392403116,1761435029064,-151.0,0.00014914,2]
[392403117,1761435029146,-151.0,0.00014914,2]
[392403118,1761435029233,-151.0,0.00014914,2]
[392403119,1761435029316,-151.0,0.00014914,2]
[392403120,1761435029396,-151.0,0.00014914,2]
[392403121,1761435029475,-151.0,0.00014914,2]
[392403122,1761435029555,-151.0,0.00014914,2]
[392403123,1761435030370,151.0,0.00014914,2]
[392403124,1761435030594,151.0,0.00014914,2]
[392403125,1761435030853,151.0,0.00014914,2]
[392403126,1761435031342,-530.41728995,0.00014917,2]
[392403127,1761435031479,151.0,0.00014914,2]
[392403128,1761435032107,151.0,0.00014914,2]
[392403155,1761435032736,151.0,0.00014914,2]
[392403160,1761435032775,-23.29601817,0.00014917,2]
[392403162,1761435032784,-573.97358123,0.00014917,2]
[392403164,1761435032795,-20.27398683,0.00014917,2]
[392403166,1761435032804,-594.24756806,0.00014917,2]
[392403168,1761435032814,-594.24756806,0.00014917,2]
[392403171,1761435032824,-594.24756806,0.00014917,2]
[392403172,1761435032833,-594.24756806,0.00014917,2]
[392403174,1761435032843,-594.24756806,0.00014917,2]
[392403176,1761435032852,-594.24756806,0.00014917,2]
[392403178,1761435032861,-594.24756806,0.00014917,2]
[392403180,1761435032870,-594.24756806,0.00014917,2]
[392403182,1761435032879,-594.24756806,0.00014917,2]
[392403184,1761435032888,-594.24756806,0.00014917,2]
[392403186,1761435032898,-594.24756806,0.00014917,2]
[392403188,1761435032907,-373.41960791,0.00014917,2]
[392403190,1761435032916,-560.57583853,0.00014917,2]
[392403192,1761435032925,-500.0,0.00014917,2]
[392403193,1761435032934,-500.0,0.00014917,2]
[392403195,1761435032943,-560.57583853,0.00014917,2]
[392403197,1761435032953,-500.0,0.00014917,2]
[392403199,1761435032962,-560.57583853,0.00014917,2]
[392403200,1761435032971,-500.0,0.00014917,2]
[392403201,1761435032980,-560.57583853,0.00014917,2]
[392403202,1761435032989,-500.0,0.00014917,2]
[392403203,1761435033001,-560.57583853,0.00014917,2]
[392403204,1761435033010,-500.0,0.00014917,2]
[392403205,1761435033019,-500.0,0.00014917,2]
[392403206,1761435033028,-560.57583853,0.00014917,2]
[392403207,1761435033038,-500.0,0.00014917,2]
[392403208,1761435033047,-560.57583853,0.00014917,2]
[392403209,1761435033056,-290.70822266,0.00014917,2]
[392403210,1761435033066,-500.0,0.00014917,2]
[392403211,1761435033075,-560.57583853,0.00014917,2]
[392403212,1761435033085,-500.0,0.00014917,2]
[392403213,1761435033094,-560.57583853,0.00014917,2]
[392403214,1761435033104,-500.0,0.00014917,2]
[392403215,1761435033114,-560.57583853,0.00014917,2]
[392403216,1761435033123,-500.0,0.00014917,2]
[392403217,1761435033132,-560.57583853,0.00014917,2]
[392403218,1761435033141,-500.0,0.00014917,2]
[392403219,1761435033151,-560.57583853,0.00014917,2]
[392403220,1761435033160,-500.0,0.00014917,2]
[392403221,1761435033170,-560.57583853,0.00014917,2]
[392403222,1761435033179,-560.57583853,0.00014917,2]
[392403223,1761435033189,-500.0,0.00014917,2]
[392403224,1761435033199,-560.57583853,0.00014917,2]
[392403225,1761435033208,-560.57583853,0.00014917,2]
[392403226,1761435033218,-560.57583853,0.00014917,2]
[392403227,1761435033227,-560.57583853,0.00014917,2]
[392403228,1761435033238,-560.57583853,0.00014917,2]
[392403229,1761435033247,-560.57583853,0.00014917,2]
[392403230,1761435033257,-560.57583853,0.00014917,2]
[392403231,1761435033266,-560.57583853,0.00014917,2]
[392403232,1761435033276,-560.57583853,0.00014917,2]
[392403233,1761435033285,-560.57583853,0.00014917,2]
[392403234,1761435033295,-560.57583853,0.00014917,2]
[392403235,1761435033305,-560.57583853,0.00014917,2]
[392403236,1761435033314,-560.57583853,0.00014917,2]
[392403237,1761435033323,-560.57583853,0.00014917,2]
[392403238,1761435033333,-560.57583853,0.00014917,2]
[392403239,1761435033343,-560.57583853,0.00014917,2]
[392403240,1761435033353,-560.57583853,0.00014917,2]
[392403241,1761435033362,-560.57583853,0.00014917,2]
[392403242,1761435033372,-560.57583853,0.00014917,2]
[392403243,1761435033381,-540.25496437,0.00014917,2]
[392403244,1761435033391,-540.25496437,0.00014917,2]
[392403245,1761435033400,-540.25496437,0.00014917,2]
[392403246,1761435033409,-540.25496437,0.00014917,2]
[392403247,1761435033419,-540.25496437,0.00014917,2]
[392403248,1761435033428,-540.25496437,0.00014917,2]
[392403249,1761435033438,-540.25496437,0.00014917,2]
[392403250,1761435033447,-540.25496437,0.00014917,2]
[392403251,1761435033456,-540.25496437,0.00014917,2]
[392403252,1761435033466,-540.25496437,0.00014917,2]
[392403253,1761435033475,-540.25496437,0.00014917,2]
[392403254,1761435033484,-540.25496437,0.00014917,2]
[392403255,1761435033495,-540.25496437,0.00014917,2]
[392403256,1761435033505,-540.25496437,0.00014917,2]
[392403257,1761435033514,-540.25496437,0.00014917,2]
[392403258,1761435033523,-540.25496437,0.00014917,2]
[392403259,1761435033532,-6324.70718659,0.00014919,2]
[392403260,1761435033541,-102955.52736219,0.00014923,2]
[392403261,1761435033569,-35374.42004744,0.00014923,2]
[392403262,1761435033606,-211.31757432,0.00014923,2]
[392403263,1761435033701,151.0,0.00014914,2]
[392403264,1761435033972,151.0,0.00014914,2]
[392403265,1761435034581,151.0,0.00014914,2]
[392403266,1761435035184,151.0,0.00014914,2]
[392403267,1761435035804,151.0,0.00014914,2]
[392403268,1761435036437,283.14708995,0.00014914,2]
[392403335,1761435038989,-309.18838915,0.00014923,2]
[392403524,1761435041881,-3019.04,0.00014923,2]
[392403570,1761435046743,-1255.25264878,0.00014774,2]
[392403571,1761435046752,-15169.74735122,0.00014923,2]
[392403572,1761435046869,-130355.63052531,0.00014923,2]
[392403573,1761435046881,-82388.72683807,0.00014923,2]
[392403574,1761435046891,-1337.10576516,0.00015,2]
[392403575,1761435046900,-500.0,0.0001502,2]
[392403576,1761435046909,-500.0,0.0001502,2]
[392403577,1761435046917,-500.0,0.0001502,2]
[392403578,1761435046927,-546.88,0.00015022,2]
[392403579,1761435046936,-210.5257767,0.00015031,2]
[392403580,1761435046945,-164.805164,0.00015068,2]
[392403581,1761435046954,-500.0,0.00015068,2]
[392403582,1761435046963,-196.0,0.0001511,2]
[392403583,1761435046972,-196.0,0.00015162,2]
[392403584,1761435046981,-300.0,0.00015166,2]
[392403585,1761435046990,-300.0,0.00015166,2]
[392403586,1761435046999,-300.0,0.00015166,2]
[392403587,1761435047008,-300.0,0.00015166,2]
[392403588,1761435047017,-300.0,0.00015166,2]
[392403589,1761435047026,-300.0,0.00015166,2]
[392403590,1761435047035,-300.0,0.00015166,2]
[392403591,1761435047043,-300.0,0.00015166,2]
[392403592,1761435047052,-300.0,0.00015166,2]
[392403593,1761435047062,-300.0,0.00015166,2]
[392403594,1761435047071,-300.0,0.00015166,2]
[392403595,1761435047080,-300.0,0.00015166,2]
[392403596,1761435047088,-300.0,0.00015166,2]
[392403597,1761435047097,-300.0,0.00015166,2]
[392403598,1761435047106,-300.0,0.00015166,2]
[392403599,1761435047115,-196.0,0.00015213,2]
[392403600,1761435047124,-600.0,0.0001522,2]
[392403601,1761435047133,-196.0,0.00015265,2]
[392403602,1761435047142,-2120.0,0.00015282,2]
[392403603,1761435047151,-196.0,0.00015316,2]
[392403604,1761435047160,-240.0,0.00015327,2]
[392403605,1761435047169,-3956.19740041,0.00015334,2]
[392403606,1761435047178,-240.0,0.00015352,2]
[392403607,1761435047187,-240.0,0.00015365,2]
[392403608,1761435047196,-196.0,0.00015368,2]
[392403609,1761435047205,-240.0,0.00015385,2]
[392403610,1761435047215,-196.0,0.00015419,2]
[392403611,1761435047224,-240.0,0.00015421,2]
[392403612,1761435047233,-523.20263232,0.00015427,2]
[392403613,1761435047243,-196.0,0.00015471,2]
[392403614,1761435047253,-240.0,0.00015486,2]
[392403615,1761435047262,-196.0,0.00015522,2]
[392403616,1761435047273,-196.0,0.00015574,2]
[392403617,1761435047282,-240.0,0.00015598,2]
[392403618,1761435047291,-196.0,0.00015626,2]
[392403619,1761435047301,-196.0,0.00015677,2]
[392403620,1761435047310,-240.0,0.00015726,2]
[392403621,1761435047318,-196.0,0.00015729,2]
[392403622,1761435047328,-240.0,0.00015729,2]
[392403623,1761435047337,-500.0,0.00015732,2]
[392403624,1761435047346,-376.98239395,0.00015732,2]
[392403625,1761435047355,-240.0,0.00015748,2]
[392403626,1761435047363,-240.0,0.00015748,2]
[392403627,1761435047372,-196.0,0.0001578,2]
[392403628,1761435047381,-240.0,0.00015814,2]
[392403629,1761435047390,-196.0,0.00015832,2]
[392403630,1761435047398,-500.0,0.00015838,2]
[392403631,1761435047407,-500.0,0.00015838,2]
[392403632,1761435047417,-418.63082869,0.00015838,2]
[392403633,1761435047426,-500.0,0.00015838,2]
[392403634,1761435047435,-240.0,0.00015841,2]
[392403635,1761435047444,-2120.0,0.00015848,2]
[392403636,1761435047453,-196.0,0.00015883,2]
[392403637,1761435047462,-240.0,0.00015914,2]
[392403638,1761435047471,-196.0,0.00015935,2]
[392403639,1761435047480,-196.0,0.00015986,2]
[392403640,1761435047489,-151.0,0.00016003,2]
[392403641,1761435047498,-151.0,0.00016003,2]
[392403642,1761435047507,-250.0,0.00016006,2]
[392403643,1761435047516,-240.0,0.00016022,2]
[392403644,1761435047525,-240.0,0.00016023,2]
[392403645,1761435047534,-196.0,0.00016038,2]
[392403646,1761435047543,-4210.0,0.00016068,2]
[392403647,1761435047552,-2120.0,0.00016086,2]
[392403648,1761435047562,-196.0,0.00016089,2]
[392403649,1761435047571,-240.0,0.00016114,2]
[392403650,1761435047582,-196.0,0.00016141,2]
[392403651,1761435047592,-240.0,0.00016153,2]
[392403652,1761435047601,-500.0,0.00016164,2]
[392403653,1761435047610,-196.0,0.00016193,2]
[392403654,1761435047619,-647.61,0.00016223,3]
[392403655,1761435047629,-196.0,0.00016244,2]
[392403656,1761435047639,-240.0,0.00016278,2]
[392403657,1761435047648,-1000.0,0.0001628,2]
[392403658,1761435047657,-1551.0,0.0001629,2]
[392403659,1761435047666,-196.0,0.00016296,2]
[392403660,1761435047674,-420.0,0.00016326,2]
[392403661,1761435047684,-420.0,0.00016326,2]
[392403662,1761435047698,-420.0,0.00016326,2]
[392403663,1761435047707,-420.0,0.00016326,2]
[392403664,1761435047720,-420.0,0.00016326,2]
[392403665,1761435047731,-1680.0,0.00016327,2]
[392403666,1761435047740,-176.02,0.00016338,2]
[392403667,1761435047749,-196.0,0.00016347,2]
[392403668,1761435047758,-500.0,0.00016364,2]
[392403669,1761435047768,-500.0,0.00016364,2]
[392403670,1761435047779,-500.0,0.00016364,2]
[392403671,1761435047788,-500.0,0.00016364,2]
[392403672,1761435047797,-217.12319618,0.00016364,2]
[392403673,1761435047808,-500.0,0.00016364,2]
[392403674,1761435047819,-500.0,0.00016364,2]
[392403675,1761435047829,-500.0,0.00016364,2]
[392403676,1761435047839,-500.0,0.00016364,2]
[392403677,1761435047850,-500.0,0.00016364,2]
[392403678,1761435047861,-500.0,0.00016364,2]
[392403679,1761435047871,-500.0,0.00016364,2]
[392403680,1761435047880,-500.0,0.00016364,2]
[392403681,1761435047890,-500.0,0.00016364,2]
[392403682,1761435047903,-500.0,0.00016364,2]
[392403683,1761435047916,-1000.0,0.00016385,2]
[392403684,1761435047930,-1000.0,0.00016385,2]
[392403685,1761435047942,-1000.0,0.00016385,2]
[392403686,1761435047953,-196.0,0.00016399,2]
[392403687,1761435047964,-240.0,0.00016404,2]
[392403688,1761435047974,-1680.0,0.00016408,2]
[392403689,1761435047984,-378.05580278,0.00016437,2]
[392403690,1761435047997,-395.7927574,0.00016438,2]
[392403691,1761435048008,-500.0,0.00016438,2]
[392403692,1761435048018,-500.0,0.00016438,2]
[392403693,1761435048029,-500.0,0.00016438,2]
[392403694,1761435048041,-500.0,0.00016438,2]
[392403695,1761435048052,-615.31443431,0.00016438,2]
[392403696,1761435048064,-500.0,0.00016438,2]
[392403697,1761435048074,-1151.92,0.00016438,2]
[392403698,1761435048087,-500.0,0.00016438,2]
[392403699,1761435048098,-500.0,0.00016438,2]
[392403700,1761435048111,-500.0,0.00016438,2]
[392403701,1761435048122,-500.0,0.00016438,2]
[392403702,1761435048134,-500.0,0.00016438,2]
[392403703,1761435048145,-514.48577647,0.00016438,2]
[392403704,1761435048156,-500.0,0.00016438,2]
[392403705,1761435048168,-500.0,0.00016438,2]
[392403706,1761435048179,-500.0,0.00016438,2]
[392403707,1761435048189,-494.95452777,0.00016438,2]
[392403708,1761435048201,-500.0,0.00016438,2]
[392403709,1761435048213,-500.0,0.00016438,2]
[392403710,1761435048225,-500.0,0.00016438,2]
[392403711,1761435048236,-500.0,0.00016438,2]
[392403712,1761435048247,-500.0,0.00016438,2]
[392403713,1761435048259,-500.0,0.00016438,2]
[392403714,1761435048271,-566.67,0.00016438,2]
[392403715,1761435048281,-500.0,0.00016438,2]
[392403716,1761435048294,-507.92667981,0.00016438,2]
[392403717,1761435048304,-380.29061454,0.00016438,2]
[392403718,1761435048315,-500.0,0.00016438,2]
[392403719,1761435048327,-500.0,0.00016438,2]
[392403720,1761435048339,-1191.25,0.00016438,2]
[392403721,1761435048352,-500.0,0.00016438,2]
[392403722,1761435048365,-500.0,0.00016438,2]
[392403723,1761435048377,-500.0,0.00016438,2]
[392403724,1761435048389,-500.0,0.00016438,2]
[392403725,1761435048402,-586.79509312,0.00016438,2]
[392403726,1761435048415,-500.0,0.00016438,2]
[392403727,1761435048427,-500.0,0.00016438,2]
[392403728,1761435048440,-500.0,0.00016438,2]
[392403729,1761435048450,-500.0,0.00016438,2]
[392403730,1761435048460,-500.0,0.00016438,2]
[392403731,1761435048470,-500.0,0.00016438,2]
[392403732,1761435048481,-500.0,0.00016438,2]
[392403733,1761435048492,-500.0,0.00016438,2]
[392403734,1761435048503,-741.04,0.00016438,2]
[392403735,1761435048514,-500.0,0.00016438,2]
[392403736,1761435048527,-500.0,0.00016438,2]
[392403737,1761435048538,-500.0,0.00016438,2]
[392403738,1761435048549,-500.0,0.00016438,2]
[392403739,1761435048560,-500.0,0.00016438,2]
[392403740,1761435048570,-500.0,0.00016438,2]
[392403741,1761435048580,-500.0,0.00016438,2]
[392403742,1761435048591,-1091.38,0.00016438,2]
[392403743,1761435048602,-500.0,0.00016438,2]
[392403744,1761435048614,-500.0,0.00016438,2]
[392403745,1761435048625,-500.0,0.00016438,2]
[392403746,1761435048636,-516.20056151,0.00016438,2]
[392403747,1761435048648,-500.0,0.00016438,2]
[392403748,1761435048660,-500.0,0.00016438,2]
[392403749,1761435048670,-500.0,0.00016438,2]
[392403750,1761435048680,-500.0,0.00016438,2]
[392403751,1761435048690,-715.39,0.00016438,2]
[392403752,1761435048701,-500.0,0.00016438,2]
[392403753,1761435048712,-1224.0,0.00016438,2]
[392403754,1761435048722,-500.0,0.00016438,2]
[392403755,1761435048733,-500.0,0.00016438,2]
[392403756,1761435048743,-500.0,0.00016438,2]
[392403757,1761435048753,-500.0,0.00016438,2]
[392403758,1761435048765,-500.0,0.00016438,2]
[392403759,1761435048775,-500.0,0.00016438,2]
[392403760,1761435048785,-500.0,0.00016438,2]
[392403761,1761435048796,-500.0,0.00016438,2]
[392403762,1761435048806,-1038.86,0.00016438,2]
[392403763,1761435048817,-500.0,0.00016438,2]
[392403764,1761435048827,-517.40970912,0.00016438,2]
[392403765,1761435048837,-500.0,0.00016438,2]
[392403766,1761435048847,-500.0,0.00016438,2]
[392403767,1761435048857,-500.0,0.00016438,2]
[392403768,1761435048867,-500.0,0.00016438,2]
[392403769,1761435048877,-500.0,0.00016438,2]
[392403770,1761435048887,-500.0,0.00016438,2]
[392403771,1761435048897,-500.0,0.00016438,2]
[392403772,1761435048907,-500.0,0.00016438,2]
[392403773,1761435048919,-500.0,0.00016438,2]
[392403774,1761435048930,-500.0,0.00016438,2]
[392403775,1761435048941,-500.0,0.00016438,2]
[392403776,1761435048951,-151.0,0.00016438,2]
[392403777,1761435048965,-500.0,0.00016438,2]
[392403778,1761435048976,-500.0,0.00016438,2]
[392403779,1761435048988,-500.0,0.00016438,2]
[392403780,1761435048999,-500.0,0.00016438,2]
[392403781,1761435049009,-418.0,0.00016438,2]
[392403782,1761435049021,-523.52540054,0.00016438,2]
[392403783,1761435049031,-500.0,0.00016438,2]
[392403784,1761435049043,-500.0,0.00016438,2]
[392403785,1761435049056,-500.0,0.00016438,2]
[392403786,1761435049067,-932.95,0.00016438,2]
[392403787,1761435049077,-500.0,0.00016438,2]
[392403788,1761435049088,-500.0,0.00016438,2]
[392403789,1761435049099,-472.5886454,0.00016438,2]
[392403790,1761435049110,-500.0,0.00016438,2]
[392403791,1761435049120,-500.0,0.00016438,2]
[392403792,1761435049131,-500.0,0.00016438,2]
[392403793,1761435049141,-500.0,0.00016438,2]
[392403794,1761435049151,-500.0,0.00016438,2]
[392403795,1761435049161,-698.81,0.00016438,2]
[392403796,1761435049171,-500.0,0.00016438,2]
[392403797,1761435049181,-467.63087812,0.00016438,2]
[392403798,1761435049192,-500.0,0.00016438,2]
[392403799,1761435049202,-500.0,0.00016438,2]
[392403800,1761435049213,-544.06414746,0.00016438,2]
[392403801,1761435049223,-500.0,0.00016438,2]
[392403802,1761435049234,-500.0,0.00016438,2]
[392403803,1761435049245,-500.0,0.00016438,2]
[392403804,1761435049255,-918.84,0.00016438,2]
[392403805,1761435049265,-500.0,0.00016438,2]
[392403806,1761435049275,-500.0,0.00016438,2]
[392403807,1761435049285,-2152.23,0.00016438,2]
[392403808,1761435049296,-613.25,0.00016438,2]
[392403809,1761435049307,-500.0,0.00016438,2]
[392403810,1761435049318,-500.0,0.00016438,2]
[392403811,1761435049328,-500.0,0.00016438,2]
[392403812,1761435049338,-500.0,0.00016438,2]
[392403813,1761435049348,-500.0,0.00016438,2]
[392403814,1761435049358,-500.0,0.00016438,2]
[392403815,1761435049368,-500.0,0.00016438,2]
[392403816,1761435049378,-500.0,0.00016438,2]
[392403817,1761435049388,-362.79,0.00016438,2]
[392403818,1761435049398,-824.59,0.00016438,2]
[392403819,1761435049408,-500.0,0.00016438,2]
[392403820,1761435049418,-500.0,0.00016438,2]
[392403821,1761435049428,-500.0,0.00016438,2]
[392403822,1761435049438,-792.54,0.00016438,2]
[392403823,1761435049448,-500.0,0.00016438,2]
[392403824,1761435049459,-500.0,0.00016438,2]
[392403825,1761435049468,-500.0,0.00016438,2]
[392403826,1761435049479,-500.0,0.00016438,2]
[392403827,1761435049489,-500.0,0.00016438,2]
[392403828,1761435049499,-500.0,0.00016438,2]
[392403829,1761435049509,-500.0,0.00016438,2]
[392403830,1761435049520,-823.22,0.00016438,2]
[392403831,1761435049530,-580.54,0.00016438,2]
[392403832,1761435049540,-500.0,0.00016438,2]
[392403833,1761435049550,-500.0,0.00016438,2]
[392403834,1761435049560,-834.32,0.00016438,2]
[392403835,1761435049570,-500.0,0.00016438,2]
[392403836,1761435049581,-500.0,0.00016438,2]
[392403837,1761435049591,-500.0,0.00016438,2]
[392403838,1761435049601,-500.0,0.00016438,2]
[392403839,1761435049611,-1568.63,0.00016438,2]
[392403840,1761435049621,-500.0,0.00016438,2]
[392403841,1761435049631,-500.0,0.00016438,2]
[392403842,1761435049641,-1326.48,0.00016438,2]
[392403843,1761435049651,-500.0,0.00016438,2]
[392403844,1761435049660,-500.0,0.00016438,2]
[392403845,1761435049670,-688.96,0.00016438,2]
[392403846,1761435049680,-1000.0,0.00016438,2]
[392403847,1761435049692,-500.0,0.00016438,2]
[392403848,1761435049703,-500.0,0.00016438,2]
[392403849,1761435049713,-500.0,0.00016438,2]
[392403850,1761435049724,-500.0,0.00016438,2]
[392403851,1761435049735,-536.51,0.00016438,2]
[392403852,1761435049746,-500.0,0.00016438,2]
[392403853,1761435049756,-239.79200032,0.00016438,2]
[392403854,1761435049767,-500.0,0.00016438,2]
[392403855,1761435049778,-500.0,0.00016438,2]
[392403856,1761435049789,-500.0,0.00016438,2]
[392403857,1761435049801,-491.8260256,0.00016438,2]
[392403858,1761435049812,-1170.73,0.00016438,2]
[392403859,1761435049823,-500.0,0.00016438,2]
[392403860,1761435049833,-500.0,0.00016438,2]
[392403861,1761435049842,-500.0,0.00016438,2]
[392403862,1761435049852,-654.85,0.00016438,2]
[392403863,1761435049864,-500.0,0.00016438,2]
[392403864,1761435049874,-500.0,0.00016438,2]
[392403865,1761435049884,-662.11,0.00016438,2]
[392403866,1761435049896,-1704.0,0.00016438,2]
[392403867,1761435049908,-500.0,0.00016438,2]
[392403868,1761435049920,-500.0,0.00016438,2]
[392403869,1761435049930,-839.52,0.00016438,2]
[392403870,1761435049941,-500.0,0.00016438,2]
[392403871,1761435049952,-500.0,0.00016438,2]
[392403872,1761435049967,-1224.0,0.00016438,2]
[392403873,1761435049977,-500.0,0.00016438,2]
[392403874,1761435049987,-500.0,0.00016438,2]
[392403875,1761435049996,-727.86,0.00016438,2]
[392403876,1761435050007,-500.0,0.00016438,2]
[392403877,1761435050016,-151.0,0.00016438,2]
[392403878,1761435050027,-500.0,0.00016438,2]
[392403879,1761435050038,-151.0,0.00016438,2]
[392403880,1761435050047,-500.0,0.00016438,2]
[392403881,1761435050057,-500.0,0.00016438,2]
[392403882,1761435050068,-500.0,0.00016438,2]
[392403883,1761435050078,-500.0,0.00016438,2]
[392403884,1761435050088,-500.0,0.00016438,2]
[392403885,1761435050098,-500.0,0.00016438,2]
[392403886,1761435050108,-500.0,0.00016438,2]
[392403887,1761435050118,-500.0,0.00016438,2]
[392403888,1761435050129,-556.18,0.00016438,2]
[392403889,1761435050139,-500.0,0.00016438,2]
[392403890,1761435050149,-1184.83,0.00016438,2]
[392403891,1761435050159,-774.38,0.00016438,2]
[392403892,1761435050169,-500.0,0.00016438,2]
[392403893,1761435050179,-500.0,0.00016438,2]
[392403894,1761435050439,-500.0,0.00016438,2]
[392403895,1761435050454,-854.93,0.00016438,2]
[392403896,1761435050470,-500.0,0.00016438,2]
[392403897,1761435050482,-1194.45,0.00016438,2]
[392403898,1761435050492,-594.04,0.00016438,2]
[392403899,1761435050501,-904.29,0.00016438,2]
[392403900,1761435050512,-513.96,0.00016438,2]
[392403901,1761435050522,-660.25,0.00016438,2]
[392403902,1761435050533,-500.0,0.00016438,2]
[392403903,1761435050543,-500.0,0.00016438,2]
[392403904,1761435050552,-1284.34,0.00016438,2]
[392403905,1761435050562,-500.0,0.00016438,2]
[392403906,1761435050571,-1332.84,0.00016438,2]
[392403907,1761435050580,-500.0,0.00016438,2]
[392403908,1761435050589,-1571.72,0.00016438,2]
[392403909,1761435050598,-500.0,0.00016438,2]
[392403910,1761435050607,-500.0,0.00016438,2]
[392403911,1761435050616,-500.0,0.00016438,2]
[392403912,1761435050624,-913.35,0.00016438,2]
[392403913,1761435050633,-1296.29,0.00016438,2]
[392403914,1761435050642,-830.25,0.00016438,2]
[392403915,1761435050651,-500.0,0.00016438,2]
[392403916,1761435050660,-1207.39,0.00016438,2]
[392403917,1761435050669,-504.82059752,0.00016438,2]
[392403918,1761435050678,-500.0,0.00016438,2]
[392403919,1761435050687,-2308.25,0.00016438,2]
[392403920,1761435050696,-500.0,0.00016438,2]
[392403921,1761435050705,-500.0,0.00016438,2]
[392403922,1761435050715,-500.0,0.00016438,2]
[392403923,1761435050725,-375.86140373,0.00016438,2]
[392403924,1761435050736,-500.0,0.00016438,2]
[392403925,1761435050747,-913.36,0.00016438,2]
[392403926,1761435050757,-500.0,0.00016438,2]
[392403927,1761435050768,-500.0,0.00016438,2]
[392403928,1761435050780,-500.0,0.00016438,2]
[392403929,1761435050790,-500.0,0.00016438,2]
[392403930,1761435050801,-500.0,0.00016438,2]
[392403931,1761435050811,-500.0,0.00016438,2]
[392403932,1761435050820,-953.23,0.00016438,2]
[392403933,1761435050829,-500.0,0.00016438,2]
[392403934,1761435050838,-500.0,0.00016438,2]
[392403935,1761435050847,-1516.82,0.00016438,2]
[392403936,1761435050856,-861.5,0.00016438,2]
[392403937,1761435050865,-469.40519008,0.00016438,2]
[392403938,1761435050874,-500.0,0.00016438,2]
[392403939,1761435050883,-500.0,0.00016438,2]
[392403940,1761435050892,-527.25761914,0.00016438,2]
[392403941,1761435050901,-1199.4,0.00016438,2]
[392403942,1761435050910,-500.0,0.00016438,2]
[392403943,1761435050919,-500.0,0.00016438,2]
[392403944,1761435050929,-728.65,0.00016438,2]
[392403945,1761435050938,-1526.09,0.00016438,2]
[392403946,1761435050947,-151.60387663,0.00016438,2]
[392403947,1761435050956,-500.0,0.00016438,2]
[392403948,1761435050964,-500.0,0.00016438,2]
[392403949,1761435050973,-611.77,0.00016438,2]